Workbook

Sheet паспорт
A1: ПАТ "УКРТРАНСГАЗ" | G1: ПАСПОРТ ФІЗИКО-ХІМІЧНИХ ПОКАЗНИКІВ ПРИРОДНОГО ГАЗУ № 871
A2: Філія "УМГ "Черкаситрансгаз" | G2: переданого Кременчуцьким ЛВУМГ та прийнятого ВАТ"Кіровоградгаз"
A3: Кременчуцьке ЛВУМГ | G3: Маршрут № 871
A4: Вимірювальна хіміко-аналітична лабораторія
A5: Кременчуцького промислового майданчика
A6: Свідоцтво № 0612 КФ від 30.12.15р. чинне до 20.06.19р. | K6: по газопроводу "Єлець-Кременчук-Кривий Ріг" | V6: за період з | X6: 2017-02-01 | Z6: по | AA6: 2017-02-28
A8: Число місяця | B8: Компонентний склад, % мол. | N8: Фізико-хімічні показники газу обчислені на основі компонентного складу, 101,325 кПа | X8: Температура точки роси за вологою (Р = 3.92 МПа), °С | Y8: Температура точки роси за вуглеводнями, °С | Z8: Вміст сірководню, г/м3 | AA8: Вміст меркаптанової сірки, г/м3 | AB8: Вміст механічних домішок, г/м3
N9: Густина абсолютна, кг/м3,при 20 °С, | O9: Температура вимірювання/згоряння при 20/25°С
B10: метан, С1 | C10: етан, С2 | D10: пропан, С3 | E10: ізо-бутан, і-С4 | F10: н-бутан, н-С4 | G10: нео-пентан, нео-С5 | H10: ізо-пентан, і-С5 | I10: н-пентан, н-С5 | J10: гексани та вищі, С6+ | K10: кисень, О2 | L10: азот, N2 | M10: діоксид вуглецю, CО2 | O10: Теплота згоряння нижча | R10: Теплота згоряння вища | U10: Число Воббе вище
O11: ккал/м³ | P11: МДж/м³ | Q11: кВт⋅год/м³ | R11: ккал/м³ | S11: МДж/м³ | T11: кВт⋅год/м³ | U11: ккал/м³ | V11: МДж/м³ | W11: кВт⋅год/м³
A12: 1 | O12: =P12*238.8459 -> 8170.918239 | P12: 34.21 | Q12: =P12/3.6 -> 9.502777778 | R12: =S12*238.8459 -> 9061.813446 | S12: 37.94 | T12: =S12/3.6 -> 10.53888889 | AC12: =SUM(B12:M12)+$K$43+$N$43 -> 0
A13: 2 | O13: =P13*238.8459 -> 8170.918239 | P13: 34.21 | Q13: 9.502777778 | R13: =S13*238.8459 -> 9061.813446 | S13: 37.94 | T13: 10.53888889 | AC13: 0
A14: 3 | O14: 8170.918239 | P14: 34.21 | Q14: 9.502777778 | R14: 9061.813446 | S14: 37.94 | T14: 10.53888889 | AC14: 0 | AD14: =IF(AC14=100,"ОК"," ") -> 
A15: 4 | O15: 8170.918239 | P15: 34.21 | Q15: 9.502777778 | R15: 9061.813446 | S15: 37.94 | T15: 10.53888889 | AC15: 0 | AD15: =IF(AC15=100,"ОК"," ") -> 
A16: 5 | O16: 8170.918239 | P16: 34.21 | Q16: 9.502777778 | R16: 9061.813446 | S16: 37.94 | T16: 10.53888889 | AC16: 0
A17: 6 | B17: 96.2431 | C17: 2.019 | D17: 0.6245 | E17: 0.0966 | F17: 0.0935 | G17: 0.0061 | H17: 0.0172 | I17: 0.0115 | J17: 0.0059 | K17: 0.0048 | L17: 0.7176 | M17: 0.1602 | N17: 0.6972 | O17: 8163.752862 | P17: 34.18 | Q17: 9.494444444 | R17: 9049.871151 | S17: 37.89 | T17: 10.525 | U17: 11895 | V17: 49.8 | W17: =V17/3.6 -> 13.83333333 | X17: -20.4 | AC17: 100 | AD17: ОК
A18: 7 | O18: 8163.752862 | P18: 34.18 | Q18: 9.494444444 | R18: 9049.871151 | S18: 37.89 | T18: 10.525 | AC18: 0
A19: 8 | O19: 8163.752862 | P19: 34.18 | Q19: 9.494444444 | R19: 9049.871151 | S19: 37.89 | T19: 10.525 | AC19: 0
A20: 9 | O20: 8163.752862 | P20: 34.18 | Q20: 9.494444444 | R20: 9049.871151 | S20: 37.89 | T20: 10.525 | AC20: 0
A21: 10 | O21: 8163.752862 | P21: 34.18 | Q21: =P21/3.6 -> 9.494444444 | R21: 9049.871151 | S21: 37.89 | T21: =S21/3.6 -> 10.525 | AC21: 0
A22: 11 | O22: 8163.752862 | P22: 34.18 | Q22: 9.494444444 | R22: 9049.871151 | S22: 37.89 | T22: 10.525 | AC22: 0
A23: 12 | O23: 8163.752862 | P23: 34.18 | Q23: 9.494444444 | R23: 9049.871151 | S23: 37.89 | T23: 10.525 | AC23: 0
A24: 13 | B24: 96.2862 | C24: 2.0028 | D24: 0.618 | E24: 0.0958 | F24: 0.0925 | G24: 0.0012 | H24: 0.0172 | I24: 0.0119 | J24: 0.01 | K24: 0.0044 | L24: 0.7076 | M24: 0.1525 | N24: 0.6998 | O24: 8161.364403 | P24: 34.17 | Q24: 9.491666667 | R24: 9047.482692 | S24: 37.88 | T24: 10.52222222 | U24: 11895 | V24: 49.8 | W24: 13.83333333 | AC24: 100.0001
A25: 14 | O25: 8161.364403 | P25: 34.17 | Q25: 9.491666667 | R25: 9047.482692 | S25: 37.88 | T25: 10.52222222 | AC25: 0
A26: 15 | O26: 8161.364403 | P26: 34.17 | Q26: 9.491666667 | R26: 9047.482692 | S26: 37.88 | T26: 10.52222222 | AC26: 0
A27: 16 | O27: 8161.364403 | P27: 34.17 | Q27: =P27/3.6 -> 9.491666667 | R27: 9047.482692 | S27: 37.88 | T27: =S27/3.6 -> 10.52222222 | AC27: 0
A28: 17 | O28: 8161.364403 | P28: 34.17 | Q28: 9.491666667 | R28: 9047.482692 | S28: 37.88 | T28: 10.52222222 | AC28: 0
A29: 18 | O29: 8161.364403 | P29: 34.17 | Q29: 9.491666667 | R29: 9047.482692 | S29: 37.88 | T29: 10.52222222 | AC29: 0
A30: 19 | O30: 8161.364403 | P30: 34.17 | Q30: 9.491666667 | R30: 9047.482692 | S30: 37.88 | T30: 10.52222222 | AC30: 0
A31: 20 | B31: 95.1836 | C31: 2.5867 | D31: 0.7267 | E31: 0.0934 | F31: 0.0994 | G31: 0.0011 | H31: 0.0193 | I31: 0.0145 | J31: 0.0188 | K31: 0.0075 | L31: 1.0845 | M31: 0.1645 | N31: 0.704 | O31: 8185.248993 | P31: 34.27 | Q31: 9.519444444 | R31: 9071.367282 | S31: 37.98 | T31: 10.55 | U31: 11866 | V31: 49.68 | W31: 13.8 | X31: -21.1 | AC31: 100 | AD31: =IF(AC31=100,"ОК"," ") -> ОК
A32: 21 | O32: 8185.248993 | P32: 34.27 | Q32: 9.519444444 | R32: 9071.367282 | S32: 37.98 | T32: 10.55 | AC32: 0
A33: 22 | O33: 8185.248993 | P33: 34.27 | Q33: 9.519444444 | R33: 9071.367282 | S33: 37.98 | T33: 10.55 | AC33: 0
A34: 23 | O34: 8185.248993 | P34: 34.27 | Q34: =P34/3.6 -> 9.519444444 | R34: 9071.367282 | S34: 37.98 | T34: =S34/3.6 -> 10.55 | AC34: 0 | AD34: =IF(AC34=100,"ОК"," ") -> 
A35: 24 | O35: 8185.248993 | P35: 34.27 | Q35: 9.519444444 | R35: 9071.367282 | S35: 37.98 | T35: 10.55 | AC35: 0
A36: 25 | O36: 8185.248993 | P36: 34.27 | Q36: 9.519444444 | R36: 9071.367282 | S36: 37.98 | T36: 10.55 | AC36: 0
A37: 26 | O37: 8185.248993 | P37: 34.27 | Q37: 9.519444444 | R37: 9071.367282 | S37: 37.98 | T37: =S37/3.6 -> 10.55 | AC37: 0
A38: 27 | B38: 96.4243 | C38: 1.9081 | D38: 0.5779 | E38: 0.0883 | F38: 0.0848 | G38: 0.0011 | H38: 0.0155 | I38: 0.0106 | J38: 0.0082 | K38: 0.0057 | L38: 0.7319 | M38: 0.1436 | N38: 0.6955 | O38: 8147.033649 | P38: 34.11 | Q38: 9.475 | R38: 9030.763479 | S38: 37.81 | T38: 10.50277778 | U38: 11885 | V38: 49.76 | W38: =V38/3.6 -> 13.82222222 | X38: -22.2 | Z38: <0,0001 | AA38: <0,0002 | AB38: відсутні | AC38: 100 | AD38: ОК
A39: 28 | O39: 8147.033649 | P39: 34.11 | Q39: 9.475 | R39: 9030.763479 | S39: 37.81 | T39: 10.50277778 | AC39: 0
A40: 29 | AC40: 0
A41: 30 | AC41: 0
A42: 31 | AC42: 0
A43: Рівень одоризації відповідає чинним нормативним документам | O43: =SUMPRODUCT(O12:O42,'[1] розрахунок'!D7:D37)/'[1] розрахунок'!D38 -> 8168.025966 | P43: =SUMPRODUCT(P12:P42,'[1] розрахунок'!D7:D37)/'[1] розрахунок'!D38 -> 34.19789063 | Q43: =SUMPRODUCT(Q12:Q42,'[1] розрахунок'!D7:D37)/'[1] розрахунок'!D38 -> 9.499414064 | R43: =SUMPRODUCT(R12:R42,'[1] розрахунок'!D7:D37)/'[1] розрахунок'!D38 -> 9054.938943 | S43: =SUMPRODUCT(S12:S42,'[1] розрахунок'!D7:D37)/'[1] розрахунок'!D38 -> 37.91121783 | T43: =SUMPRODUCT(T12:T42,'[1] розрахунок'!D7:D37)/'[1] розрахунок'!D38 -> 10.53089384
H44: Середньозважене значення теплоти згоряння:
B46: Начальник управління Кременчуцького ЛВУМГ Кучерук В.М. | Y46: 2017-03-02
C47: Підрозділу підприємства, якому підпорядкована лабораторія | M47: прізвище | V47: підпис | Z47: дата
B48: Начальник лабораторії ВХАЛ Кучерук Н.М. | Y48: 2017-03-02
C49: Лабораторія, де здійснювалось вимірювання газу | M49: прізвище | V49: підпис | Z49: дата
B50: Провідний економіст із збуту Кривулькін І.В. | Y50: 2017-03-02
C51: Підрозділу, відповідального за облік газу за маршрутом | M51: прізвище | V51: підпис | Z51: дата

Sheet додаток
A2: Додаток до Паспорту фізико-хімічних показників природного газу № 871
A4: Область | B4: ГРС, прямий споживач | C4: Cередньозважене значення вищої теплоти згоряння
A5: Кіровоградська область | B5: ГРС Петрово | C5: 37.91 | D5: 9055 | E5: 10.53
A6: Середньозважене значення вищої теплоти згоряння по маршруту № 871 | C6: =AVERAGE(C5) -> 37.91 | D6: =AVERAGE(D5) -> 9055 | E6: =AVERAGE(E5) -> 10.53
A10: Начальник управління Кременчуцького ЛВУМГ Кучерук В.Н. | F10: 2017-03-02
A11: Підрозділу підприємства, якому підпорядкована лабораторія | D11: прізвище | E11: підпис | F11: дата
A12: Начальник лабораторії ВХАЛ Кучерук Н.М. | F12: 2017-03-02
A13: Лабораторія, де здійснювалось вимірювання газу | D13: прізвище | E13: підпис | F13: дата
A14: Провідний економіст із збуту Кривулькін І.В. | F14: 2017-03-02
A15: Підрозділу, відповідального за облік газу за маршрутом | D15: прізвище | E15: підпис | F15: дата

Sheet variablesList (hidden)
A1: 3 | B1: x:\gaysin | C1: 10, 11, 24, 25, 127, 128, 132, 180, 207, 215 | D1: x:\
B2: x:\Illinci
B3: x:\Talne
